[Event "GrandPrix_29.05"]
[Site "Chess.com"]
[Date "2020.05.29"]
[Round "8"]
[White "Artur0208"]
[Black "elohunter1999"]
[Result "0-1"]
[WhiteElo "2291"]
[BlackElo "2222"]
[TimeControl "600+2"]
[EndTime "13:01:41 PDT"]
[Termination "elohunter1999 won by resignation"]

1. d4 {[%clk 0:10:01.9]} 1... Nf6 {[%clk 0:09:59.4]} 2. c4 {[%clk 0:10:02.2]}
2... e6 {[%clk 0:10:00.2]} 3. Nf3 {[%clk 0:10:02.5]} 3... d5 {[%clk 0:10:00.4]}
4. Nc3 {[%clk 0:10:03]} 4... Nbd7 {[%clk 0:09:56.2]} 5. cxd5 {[%clk 0:10:03.1]}
5... exd5 {[%clk 0:09:56.1]} 6. Bg5 {[%clk 0:10:03.4]} 6... c6 {[%clk
0:09:55.5]} 7. e3 {[%clk 0:10:04]} 7... Be7 {[%clk 0:09:55.8]} 8. Bd3 {[%clk
0:10:04.3]} 8... h6 {[%clk 0:09:55.9]} 9. Bh4 {[%clk 0:10:04.8]} 9... Nh5 {[%clk
0:09:56.4]} 10. Bxe7 {[%clk 0:10:05.2]} 10... Qxe7 {[%clk 0:09:58.3]} 11. O-O
{[%clk 0:10:06.7]} 11... Nhf6 {[%clk 0:09:54.8]} 12. Qc2 {[%clk 0:10:06.3]}
12... O-O {[%clk 0:09:53.5]} 13. Rfe1 {[%clk 0:10:06.5]} 13... Re8 {[%clk
0:09:00.7]} 14. h3 {[%clk 0:09:59.7]} 14... Ne4 {[%clk 0:08:46.4]} 15. Nd2
{[%clk 0:09:51]} 15... Nxd2 {[%clk 0:08:42.4]} 16. Qxd2 {[%clk 0:09:51.7]} 16...
Nf6 {[%clk 0:08:44.3]} 17. Qc2 {[%clk 0:09:52.7]} 17... Bd7 {[%clk 0:08:38]} 18.
b4 {[%clk 0:09:48.1]} 18... a6 {[%clk 0:08:29.8]} 19. Na4 {[%clk 0:09:45.3]}
19... Qxb4 {[%clk 0:08:11.8]} 20. Rab1 {[%clk 0:09:45.2]} 20... Qa5 {[%clk
0:08:09.4]} 21. Nc5 {[%clk 0:09:42.5]} 21... Bc8 {[%clk 0:08:06.5]} 22. Rec1
{[%clk 0:09:40.6]} 22... Qc7 {[%clk 0:08:01.7]} 23. Qb2 {[%clk 0:09:36.9]} 23...
b5 {[%clk 0:07:53.1]} 24. Qc2 {[%clk 0:09:37.8]} 24... Qd6 {[%clk 0:07:48.3]}
25. Nb3 {[%clk 0:09:35.3]} 25... Bd7 {[%clk 0:07:41.7]} 26. Na5 {[%clk
0:09:36.5]} 26... Rac8 {[%clk 0:07:35]} 27. Qc5 {[%clk 0:09:30.9]} 27... Qc7
{[%clk 0:07:20]} 28. Qb4 {[%clk 0:09:26.2]} 28... Qb6 {[%clk 0:07:15]} 29. Rc5
{[%clk 0:09:25.6]} 29... Rc7 {[%clk 0:07:07.9]} 30. Rbc1 {[%clk 0:09:26.7]}
30... Rec8 {[%clk 0:07:06]} 31. a3 {[%clk 0:09:27.5]} 31... Be6 {[%clk
0:06:56.4]} 32. Nb3 {[%clk 0:09:05.1]} 32... Nd7 {[%clk 0:06:18.1]} 33. R5c3
{[%clk 0:09:04.5]} 33... Ra8 {[%clk 0:06:08.4]} 34. Qd6 {[%clk 0:08:58.2]} 34...
Rac8 {[%clk 0:06:02]} 35. f4 {[%clk 0:08:22.9]} 35... Nf6 {[%clk 0:05:49.5]} 36.
Qc5 {[%clk 0:07:17.7]} 36... Nd7 {[%clk 0:04:21.6]} 37. Qxb6 {[%clk 0:05:27.4]}
37... Nxb6 {[%clk 0:04:23.5]} 38. Nc5 {[%clk 0:05:29.3]} 38... Nc4 {[%clk
0:03:54.3]} 39. Nxa6 {[%clk 0:05:29.4]} 39... Ra7 {[%clk 0:03:52.4]} 40. Bxc4
{[%clk 0:04:44.3]} 40... dxc4 {[%clk 0:02:50.1]} 41. Nb4 {[%clk 0:04:40.5]}
41... Bf5 {[%clk 0:02:28.7]} 42. Kf2 {[%clk 0:04:26.7]} 42... Be4 {[%clk
0:02:26.8]} 43. Ra1 {[%clk 0:01:25.4]} 43... Rca8 {[%clk 0:02:19.8]} 44. Nc2
{[%clk 0:01:13.4]} 44... Bxc2 {[%clk 0:02:13.9]} 45. Rxc2 {[%clk 0:01:15.3]}
45... Rxa3 {[%clk 0:02:14.6]} 46. Rxa3 {[%clk 0:01:17.2]} 46... Rxa3 {[%clk
0:02:14.5]} 47. Kf3 {[%clk 0:01:19.1]} 47... f5 {[%clk 0:02:04.1]} 48. g4 {[%clk
0:01:17.9]} 48... g6 {[%clk 0:02:04.6]} 49. gxf5 {[%clk 0:01:13.3]} 49... gxf5
{[%clk 0:02:06.5]} 0-1

[Event "GrandPrix_29.05"]
[Site "Chess.com"]
[Date "2020.05.29"]
[Round "8"]
[White "SavelijTartakover"]
[Black "VerdeNotte"]
[Result "0-1"]
[WhiteElo "2519"]
[BlackElo "2743"]
[TimeControl "600+2"]
[EndTime "13:01:43 PDT"]
[Termination "VerdeNotte won by resignation"]

1. d4 {[%clk 0:10:01.9]} 1... Nf6 {[%clk 0:09:59.9]} 2. c4 {[%clk 0:10:01.5]}
2... g6 {[%clk 0:10:00.6]} 3. Nc3 {[%clk 0:10:01.5]} 3... Bg7 {[%clk 0:10:01.9]}
4. e4 {[%clk 0:10:01.7]} 4... d6 {[%clk 0:10:03.3]} 5. Be2 {[%clk 0:10:02.6]}
5... O-O {[%clk 0:10:04.3]} 6. Bg5 {[%clk 0:10:03.4]} 6... a6 {[%clk 0:09:53]}
7. Nf3 {[%clk 0:10:00.5]} 7... Nbd7 {[%clk 0:09:48.6]} 8. O-O {[%clk 0:09:54.3]}
8... c5 {[%clk 0:09:46.1]} 9. Rc1 {[%clk 0:09:20.9]} 9... h6 {[%clk 0:09:29.4]}
10. Bh4 {[%clk 0:08:29.1]} 10... g5 {[%clk 0:08:43.9]} 11. Bg3 {[%clk
0:08:28.3]} 11... Nh5 {[%clk 0:08:43.7]} 12. dxc5 {[%clk 0:07:58.8]} 12... dxc5
{[%clk 0:08:27.9]} 13. Qc2 {[%clk 0:07:54.9]} 13... Nxg3 {[%clk 0:08:21.5]} 14.
hxg3 {[%clk 0:07:55.2]} 14... e6 {[%clk 0:08:20.2]} 15. Rfd1 {[%clk 0:07:50.7]}
15... Qc7 {[%clk 0:08:07.4]} 16. Rd2 {[%clk 0:07:45]} 16... Nb8 {[%clk
0:07:10.5]} 17. e5 {[%clk 0:07:05.6]} 17... Nc6 {[%clk 0:07:06.2]} 18. Qe4
{[%clk 0:05:38.4]} 18... Nxe5 {[%clk 0:07:00]} 19. Nxe5 {[%clk 0:05:37.8]} 19...
f5 {[%clk 0:06:38.5]} 20. Nd5 {[%clk 0:04:56.7]} 20... Qxe5 {[%clk 0:05:46.1]}
21. Ne7+ {[%clk 0:04:43.4]} 21... Kf7 {[%clk 0:05:19.8]} 22. Qxe5 {[%clk
0:04:29.7]} 22... Bxe5 {[%clk 0:05:21.7]} 23. Nxc8 {[%clk 0:04:30]} 23... Raxc8
{[%clk 0:04:21.1]} 24. Rd7+ {[%clk 0:04:23.8]} 24... Kf6 {[%clk 0:04:19.7]} 25.
Rxb7 {[%clk 0:04:12.6]} 25... Rb8 {[%clk 0:03:54.6]} 26. Rxb8 {[%clk 0:04:09.7]}
26... Rxb8 {[%clk 0:03:56.5]} 27. b3 {[%clk 0:04:09.4]} 27... g4 {[%clk
0:03:51.9]} 28. Kf1 {[%clk 0:04:04.6]} 28... Bd4 {[%clk 0:03:37.8]} 29. Bd3
{[%clk 0:03:46.2]} 29... Rd8 {[%clk 0:03:32.7]} 30. Rd1 {[%clk 0:03:43.5]} 30...
e5 {[%clk 0:03:25.2]} 31. Ke2 {[%clk 0:03:34.6]} 31... h5 {[%clk 0:03:15]} 32.
Bc2 {[%clk 0:03:24.3]} 32... Kg5 {[%clk 0:02:59.6]} 33. Bd3 {[%clk 0:03:20.6]}
33... Rh8 {[%clk 0:02:49.2]} 34. Rh1 {[%clk 0:03:14.3]} 34... Bc3 {[%clk
0:02:18.2]} 35. Rc1 {[%clk 0:03:08.2]} 35... Bb2 {[%clk 0:02:14.3]} 36. Rb1
{[%clk 0:03:08.5]} 36... Bc3 {[%clk 0:02:13.7]} 37. Rc1 {[%clk 0:03:09.3]} 37...
Bd4 {[%clk 0:02:15.2]} 38. Rh1 {[%clk 0:03:09.9]} 38... a5 {[%clk 0:02:12.9]}
39. Bc2 {[%clk 0:03:06.6]} 39... Rf8 {[%clk 0:02:09.1]} 40. f4+ {[%clk
0:02:42.4]} 40... exf4 {[%clk 0:01:41.6]} 41. gxf4+ {[%clk 0:02:42]} 41... Kxf4
{[%clk 0:01:38]} 42. Rxh5 {[%clk 0:02:40.8]} 42... Re8+ {[%clk 0:01:37.4]} 43.
Kf1 {[%clk 0:02:38.3]} 43... Bc3 {[%clk 0:01:21.4]} 0-1

[Event "GrandPrix_29.05"]
[Site "Chess.com"]
[Date "2020.05.29"]
[Round "8"]
[White "Eltaj_Safarli"]
[Black "Zubrrr"]
[Result "1-0"]
[WhiteElo "2552"]
[BlackElo "2568"]
[TimeControl "600+2"]
[EndTime "13:01:48 PDT"]
[Termination "Eltaj_Safarli won by resignation"]

1. e4 {[%clk 0:08:35.8]} 1... c5 {[%clk 0:09:33.9]} 2. Nc3 {[%clk 0:08:29.7]}
2... d6 {[%clk 0:09:34.5]} 3. Bb5+ {[%clk 0:08:29.1]} 3... Bd7 {[%clk
0:09:20.3]} 4. Bxd7+ {[%clk 0:08:28.6]} 4... Qxd7 {[%clk 0:09:22.2]} 5. d4
{[%clk 0:08:30]} 5... cxd4 {[%clk 0:09:22.8]} 6. Qxd4 {[%clk 0:08:31.9]} 6...
Nc6 {[%clk 0:09:23.6]} 7. Qd3 {[%clk 0:08:33.2]} 7... g6 {[%clk 0:09:24]} 8. Bg5
{[%clk 0:08:32.6]} 8... Bg7 {[%clk 0:09:13.9]} 9. Nf3 {[%clk 0:08:33.8]} 9... h6
{[%clk 0:08:45.7]} 10. Be3 {[%clk 0:08:33.5]} 10... Nf6 {[%clk 0:08:40.8]} 11.
O-O {[%clk 0:08:26.9]} 11... Ng4 {[%clk 0:08:33.5]} 12. Bf4 {[%clk 0:08:23.9]}
12... O-O {[%clk 0:08:27.9]} 13. Rad1 {[%clk 0:08:24.2]} 13... Rac8 {[%clk
0:08:20.8]} 14. h3 {[%clk 0:07:57.3]} 14... Nge5 {[%clk 0:08:19.4]} 15. Nxe5
{[%clk 0:07:58.6]} 15... Nxe5 {[%clk 0:08:20]} 16. Qg3 {[%clk 0:08:00]} 16...
Nc4 {[%clk 0:08:13.3]} 17. Bc1 {[%clk 0:08:00.9]} 17... Rc5 {[%clk 0:07:34]} 18.
f4 {[%clk 0:07:49.5]} 18... e6 {[%clk 0:06:10]} 19. e5 {[%clk 0:07:19.2]} 19...
Qc7 {[%clk 0:02:39.4]} 20. b3 {[%clk 0:06:00.2]} 20... Nxe5 {[%clk 0:02:38.5]}
21. Ne4 {[%clk 0:05:58.3]} 21... Nd7 {[%clk 0:02:11.5]} 22. Nxc5 {[%clk
0:05:58.2]} 22... Nxc5 {[%clk 0:02:07]} 23. c4 {[%clk 0:05:54.4]} 23... Ne4
{[%clk 0:02:05.4]} 24. Qd3 {[%clk 0:05:46.7]} 24... f5 {[%clk 0:02:05.5]} 25.
Be3 {[%clk 0:05:46.7]} 25... Qa5 {[%clk 0:02:03.1]} 26. a4 {[%clk 0:05:40.8]}
26... a6 {[%clk 0:01:37.7]} 27. Kh2 {[%clk 0:05:40.5]} 27... Qb4 {[%clk
0:01:37]} 28. Rf3 {[%clk 0:05:35.2]} 28... Kf7 {[%clk 0:01:26.7]} 29. Bd4 {[%clk
0:05:30.9]} 29... Bxd4 {[%clk 0:01:09.3]} 30. Qxd4 {[%clk 0:05:32.8]} 30... Rd8
{[%clk 0:01:09]} 31. Rfd3 {[%clk 0:05:22.6]} 31... Nc5 {[%clk 0:01:03.5]} 32.
Re3 {[%clk 0:05:23.2]} 32... Ne4 {[%clk 0:01:01.1]} 33. g4 {[%clk 0:05:15.6]}
33... Qa3 {[%clk 0:00:41.7]} 34. Rg1 {[%clk 0:05:05.5]} 34... Qc5 {[%clk
0:00:32.3]} 35. Rd1 {[%clk 0:04:16.6]} 35... Qa3 {[%clk 0:00:31.9]} 36. Rg1
{[%clk 0:03:11.8]} 36... Qc5 {[%clk 0:00:32.4]} 37. Rd3 {[%clk 0:03:13.2]} 37...
Qxd4 {[%clk 0:00:14.5]} 38. Rxd4 {[%clk 0:03:15.1]} 38... a5 {[%clk 0:00:09.8]}
39. gxf5 {[%clk 0:03:11.2]} 39... gxf5 {[%clk 0:00:08.4]} 40. Rg2 {[%clk
0:02:44.4]} 40... Nc5 {[%clk 0:00:08.9]} 41. Rd1 {[%clk 0:02:44.9]} 41... Nxb3
{[%clk 0:00:08.9]} 42. Rdg1 {[%clk 0:02:46.1]} 42... Rf8 {[%clk 0:00:06.7]} 43.
Rg7+ {[%clk 0:02:47.1]} 43... Ke8 {[%clk 0:00:07.6]} 44. Rxb7 {[%clk 0:02:45.9]}
44... Nc5 {[%clk 0:00:09.1]} 45. Ra7 {[%clk 0:02:46.3]} 1-0

[Event "GrandPrix_29.05"]
[Site "Chess.com"]
[Date "2020.05.29"]
[Round "8"]
[White "Olga_Girya"]
[Black "woodhy"]
[Result "0-1"]
[WhiteElo "2155"]
[BlackElo "2152"]
[TimeControl "600+2"]
[EndTime "13:01:51 PDT"]
[Termination "woodhy won by resignation"]

1. d4 {[%clk 0:10:01.9]} 1... Nf6 {[%clk 0:09:59.9]} 2. Nf3 {[%clk 0:10:01.7]}
2... b6 {[%clk 0:10:00.2]} 3. g3 {[%clk 0:09:38.9]} 3... Bb7 {[%clk 0:09:59]} 4.
c4 {[%clk 0:09:31]} 4... g6 {[%clk 0:09:53.3]} 5. Bg2 {[%clk 0:09:30.5]} 5...
Bg7 {[%clk 0:09:54.4]} 6. O-O {[%clk 0:09:31.1]} 6... O-O {[%clk 0:09:55.4]} 7.
Qc2 {[%clk 0:09:26.1]} 7... Ne4 {[%clk 0:09:52.6]} 8. Ng5 {[%clk 0:09:04.8]}
8... Nd6 {[%clk 0:09:42.5]} 9. Nf3 {[%clk 0:07:29.1]} 9... Nc6 {[%clk
0:09:28.8]} 10. e3 {[%clk 0:07:15.4]} 10... a5 {[%clk 0:08:19.4]} 11. a3 {[%clk
0:07:09.8]} 11... f5 {[%clk 0:07:57]} 12. Nbd2 {[%clk 0:06:57.8]} 12... e5
{[%clk 0:07:51.2]} 13. dxe5 {[%clk 0:04:54.2]} 13... Nxe5 {[%clk 0:07:53.1]} 14.
Nxe5 {[%clk 0:04:46.2]} 14... Bxe5 {[%clk 0:07:20.2]} 15. Bxb7 {[%clk
0:04:22.2]} 15... Nxb7 {[%clk 0:07:22.1]} 16. Nf3 {[%clk 0:04:23]} 16... Bg7
{[%clk 0:07:17.3]} 17. Bd2 {[%clk 0:04:23.6]} 17... Nc5 {[%clk 0:07:15]} 18. Bc3
{[%clk 0:03:37.6]} 18... a4 {[%clk 0:07:05]} 19. Rad1 {[%clk 0:03:35.3]} 19...
Bxc3 {[%clk 0:07:00.2]} 20. Qxc3 {[%clk 0:03:35.4]} 20... Qf6 {[%clk 0:07:00.6]}
21. Qxf6 {[%clk 0:02:01]} 21... Rxf6 {[%clk 0:07:02.5]} 22. Ne5 {[%clk
0:02:01.4]} 22... d6 {[%clk 0:06:42.9]} 23. Nd3 {[%clk 0:02:01.2]} 23... Nb3
{[%clk 0:05:52.6]} 24. Nb4 {[%clk 0:01:34.7]} 24... Re8 {[%clk 0:05:47.1]} 25.
Nd5 {[%clk 0:01:32]} 25... Rf7 {[%clk 0:05:46.3]} 26. Nc3 {[%clk 0:01:32.3]}
26... Nc5 {[%clk 0:05:44.5]} 27. Rfe1 {[%clk 0:01:24]} 27... Rd7 {[%clk
0:05:32.3]} 28. Nd5 {[%clk 0:01:21]} 28... Kf7 {[%clk 0:05:32.7]} 29. Kg2 {[%clk
0:01:20.8]} 29... Rb8 {[%clk 0:05:28.4]} 30. Nc3 {[%clk 0:01:19.9]} 30... Ra8
{[%clk 0:05:17.7]} 31. e4 {[%clk 0:01:12.6]} 31... fxe4 {[%clk 0:04:49.9]} 32.
Nxe4 {[%clk 0:01:12.9]} 32... Nxe4 {[%clk 0:04:50.7]} 33. Rxe4 {[%clk
0:01:14.8]} 33... Re7 {[%clk 0:04:24.7]} 34. Rde1 {[%clk 0:01:09.6]} 34... Rxe4
{[%clk 0:04:23.5]} 35. Rxe4 {[%clk 0:01:10.1]} 35... Ra5 {[%clk 0:04:23.1]} 36.
Kf3 {[%clk 0:00:31.2]} 36... b5 {[%clk 0:04:21.6]} 37. Ke3 {[%clk 0:00:26.5]}
37... bxc4 {[%clk 0:04:19.6]} 38. Rxc4 {[%clk 0:00:26.5]} 38... c5 {[%clk
0:04:20.6]} 39. Kd3 {[%clk 0:00:18.1]} 39... d5 {[%clk 0:04:11.2]} 40. Rf4+
{[%clk 0:00:18.9]} 40... Ke6 {[%clk 0:04:11.1]} 41. Rf8 {[%clk 0:00:19.1]} 41...
Rb5 {[%clk 0:04:11.2]} 42. Kc2 {[%clk 0:00:18.1]} 42... Rb3 {[%clk 0:04:09.7]}
43. f4 {[%clk 0:00:09.8]} 43... d4 {[%clk 0:04:03.1]} 44. Rh8 {[%clk 0:00:08.7]}
44... Rf3 {[%clk 0:03:16.7]} 45. Rxh7 {[%clk 0:00:08.6]} 45... Kd5 {[%clk
0:03:15.4]} 46. Rd7+ {[%clk 0:00:06.7]} 46... Kc4 {[%clk 0:03:15.8]} 47. Ra7
{[%clk 0:00:06.7]} 47... Rf2+ {[%clk 0:03:15.9]} 48. Kb1 {[%clk 0:00:05.3]}
48... d3 {[%clk 0:03:01.1]} 49. Rxa4+ {[%clk 0:00:05.6]} 49... Kb3 {[%clk
0:02:56.6]} 0-1

[Event "GrandPrix_29.05"]
[Site "Chess.com"]
[Date "2020.05.29"]
[Round "8"]
[White "Matibar"]
[Black "moro182"]
[Result "1-0"]
[WhiteElo "2485"]
[BlackElo "2500"]
[TimeControl "600+2"]
[EndTime "13:01:59 PDT"]
[Termination "Matibar won by resignation"]

1. e4 {[%clk 0:09:55.7]} 1... e5 {[%clk 0:10:00.8]} 2. Nc3 {[%clk 0:09:54.2]}
2... Nc6 {[%clk 0:10:00.3]} 3. g3 {[%clk 0:09:54]} 3... g6 {[%clk 0:09:58.9]} 4.
Bg2 {[%clk 0:09:55]} 4... Bg7 {[%clk 0:10:00.4]} 5. Nge2 {[%clk 0:09:48.4]} 5...
Nge7 {[%clk 0:10:01.2]} 6. d3 {[%clk 0:09:47.4]} 6... O-O {[%clk 0:10:01.1]} 7.
h4 {[%clk 0:09:43.1]} 7... h5 {[%clk 0:09:58.3]} 8. Be3 {[%clk 0:09:37.4]} 8...
Nd4 {[%clk 0:09:55.6]} 9. Bg5 {[%clk 0:09:31.6]} 9... d6 {[%clk 0:09:38.3]} 10.
Nxd4 {[%clk 0:09:31.7]} 10... exd4 {[%clk 0:09:40.2]} 11. Ne2 {[%clk 0:09:15]}
11... Be6 {[%clk 0:09:09.7]} 12. Qd2 {[%clk 0:09:08.9]} 12... Qd7 {[%clk
0:08:27.9]} 13. Nf4 {[%clk 0:08:45.1]} 13... Bg4 {[%clk 0:08:06.2]} 14. Bxe7
{[%clk 0:07:20.9]} 14... Qxe7 {[%clk 0:08:08.1]} 15. f3 {[%clk 0:07:22.6]} 15...
Bd7 {[%clk 0:07:54.9]} 16. O-O-O {[%clk 0:07:20.9]} 16... Bh6 {[%clk 0:07:42.3]}
17. Kb1 {[%clk 0:07:22.4]} 17... Qe5 {[%clk 0:07:36.3]} 18. Qf2 {[%clk
0:07:23.9]} 18... c6 {[%clk 0:06:40.8]} 19. Bh3 {[%clk 0:07:11.2]} 19... Bxh3
{[%clk 0:06:38.9]} 20. Nxh3 {[%clk 0:07:12]} 20... Be3 {[%clk 0:06:37.8]} 21.
Qg2 {[%clk 0:07:06.1]} 21... a5 {[%clk 0:06:37.8]} 22. g4 {[%clk 0:07:00.1]}
22... a4 {[%clk 0:06:17.1]} 23. f4 {[%clk 0:07:00.1]} 23... Qb5 {[%clk 0:06:06]}
24. gxh5 {[%clk 0:07:00.4]} 24... a3 {[%clk 0:06:01.6]} 25. b3 {[%clk
0:07:01.4]} 25... Qc5 {[%clk 0:04:51.7]} 26. c4 {[%clk 0:07:01.4]} 26... Qxh5
{[%clk 0:04:52.3]} 27. f5 {[%clk 0:06:53.4]} 27... b5 {[%clk 0:04:10.8]} 28. Ng5
{[%clk 0:06:44]} 28... bxc4 {[%clk 0:03:58]} 29. dxc4 {[%clk 0:06:45.9]} 29...
Rae8 {[%clk 0:03:56.1]} 30. Rdf1 {[%clk 0:05:50.5]} 30... Kh8 {[%clk 0:02:22.9]}
31. Kc2 {[%clk 0:05:09.9]} 31... f6 {[%clk 0:01:58]} 32. Kd3 {[%clk 0:04:54.3]}
32... gxf5 {[%clk 0:01:29.6]} 33. Rxf5 {[%clk 0:04:53.2]} 33... Qg6 {[%clk
0:01:22.5]} 34. Rhf1 {[%clk 0:04:15.1]} 34... d5 {[%clk 0:01:10.2]} 35. Qh3
{[%clk 0:03:15.7]} 35... dxe4+ {[%clk 0:00:27.9]} 36. Nxe4 {[%clk 0:03:16.6]}
36... Re7 {[%clk 0:00:28.9]} 37. Qf3 {[%clk 0:02:58.4]} 37... Rfe8 {[%clk
0:00:18.4]} 38. Qh5+ {[%clk 0:02:58]} 38... Qxh5 {[%clk 0:00:13.7]} 39. Rxh5+
{[%clk 0:02:59.9]} 39... Kg7 {[%clk 0:00:15.3]} 40. Nxf6 {[%clk 0:02:57.9]}
40... Rd8 {[%clk 0:00:13.3]} 41. Rhf5 {[%clk 0:02:51.8]} 41... Rh8 {[%clk
0:00:08.8]} 42. h5 {[%clk 0:02:49.4]} 42... Rd8 {[%clk 0:00:05.9]} 43. R1f3
{[%clk 0:02:48.3]} 43... Rd6 {[%clk 0:00:04.8]} 44. Rg3+ {[%clk 0:02:44.5]}
44... Kf7 {[%clk 0:00:03.9]} 45. Ne4+ {[%clk 0:02:44.6]} 45... Ke6 {[%clk
0:00:05.4]} 46. Nxd6 {[%clk 0:02:45.6]} 46... Kxd6 {[%clk 0:00:07.3]} 47. Rg6+
{[%clk 0:02:44.5]} 47... Kc7 {[%clk 0:00:07.9]} 48. h6 {[%clk 0:02:40.7]} 48...
Bc1 {[%clk 0:00:09]} 49. Rg7 {[%clk 0:02:41.7]} 1-0

[Event "GrandPrix_29.05"]
[Site "Chess.com"]
[Date "2020.05.29"]
[Round "8"]
[White "Tormoz"]
[Black "sergoy"]
[Result "1-0"]
[WhiteElo "2505"]
[BlackElo "2263"]
[TimeControl "600+2"]
[EndTime "13:02:09 PDT"]
[Termination "Tormoz won by checkmate"]

1. d4 {[%clk 0:10:01.9]} 1... Nf6 {[%clk 0:09:59.1]} 2. Nf3 {[%clk 0:10:02.2]}
2... e6 {[%clk 0:09:56.7]} 3. c4 {[%clk 0:10:02.5]} 3... d5 {[%clk 0:09:54.9]}
4. g3 {[%clk 0:10:02.8]} 4... Bb4+ {[%clk 0:09:55.2]} 5. Nc3 {[%clk 0:10:03.3]}
5... dxc4 {[%clk 0:09:52.7]} 6. Bg2 {[%clk 0:10:04]} 6... O-O {[%clk 0:09:53.3]}
7. O-O {[%clk 0:10:04.2]} 7... Nc6 {[%clk 0:09:53]} 8. Qa4 {[%clk 0:10:04.3]}
8... Nd5 {[%clk 0:09:22.9]} 9. Qc2 {[%clk 0:10:01.2]} 9... Be7 {[%clk
0:09:09.2]} 10. Rd1 {[%clk 0:09:34.5]} 10... Rb8 {[%clk 0:09:05.1]} 11. e4
{[%clk 0:09:31.2]} 11... Ndb4 {[%clk 0:09:04.3]} 12. Qe2 {[%clk 0:09:31.8]}
12... Nd3 {[%clk 0:09:00]} 13. Be3 {[%clk 0:09:32.5]} 13... b6 {[%clk
0:08:50.5]} 14. a3 {[%clk 0:08:56.5]} 14... Na5 {[%clk 0:08:42.4]} 15. b4 {[%clk
0:08:55.8]} 15... Nc6 {[%clk 0:08:11.2]} 16. Qa2 {[%clk 0:05:58]} 16... Bd7
{[%clk 0:07:44.9]} 17. d5 {[%clk 0:05:11.4]} 17... exd5 {[%clk 0:07:36.3]} 18.
exd5 {[%clk 0:05:07.1]} 18... Nce5 {[%clk 0:07:36.2]} 19. Nxe5 {[%clk
0:04:59.9]} 19... Nxe5 {[%clk 0:07:38.1]} 20. Bd4 {[%clk 0:05:00.2]} 20... Bf6
{[%clk 0:07:32.6]} 21. Ne4 {[%clk 0:04:58.2]} 21... Ba4 {[%clk 0:07:04.9]} 22.
Nxf6+ {[%clk 0:04:48]} 22... gxf6 {[%clk 0:06:52.2]} 23. Re1 {[%clk 0:04:41.5]}
23... Bb3 {[%clk 0:06:45.8]} 24. Qd2 {[%clk 0:04:37.1]} 24... Qd6 {[%clk
0:06:42.1]} 25. Qh6 {[%clk 0:03:46.4]} 25... Rfe8 {[%clk 0:06:37.4]} 26. f4
{[%clk 0:03:11]} 26... Nd7 {[%clk 0:06:27.2]} 27. Be4 {[%clk 0:02:40.5]} 27...
Rxe4 {[%clk 0:06:23.2]} 28. Rxe4 {[%clk 0:02:42.2]} 28... Bc2 {[%clk 0:05:42.1]}
29. Re3 {[%clk 0:02:42.8]} 29... c5 {[%clk 0:05:27.6]} 30. Bc3 {[%clk
0:02:34.4]} 30... Qf8 {[%clk 0:04:36.1]} 31. Qh3 {[%clk 0:02:27.1]} 31... f5
{[%clk 0:04:13.9]} 32. Rae1 {[%clk 0:02:14.9]} 32... cxb4 {[%clk 0:04:12.4]} 33.
axb4 {[%clk 0:01:46.8]} 33... a5 {[%clk 0:04:10.4]} 34. Qh5 {[%clk 0:01:24.2]}
34... h6 {[%clk 0:04:07.6]} 35. bxa5 {[%clk 0:01:13.7]} 35... bxa5 {[%clk
0:03:53.7]} 36. Re7 {[%clk 0:00:52.3]} 36... Nc5 {[%clk 0:03:43.5]} 37. Rxf7
{[%clk 0:00:52.2]} 37... Qxf7 {[%clk 0:03:30.7]} 38. Qxh6 {[%clk 0:00:52.8]}
38... Qh7 {[%clk 0:03:09.7]} 39. Qg5+ {[%clk 0:00:53.6]} 39... Kf8 {[%clk
0:03:09.4]} 40. Qf6+ {[%clk 0:00:36.3]} 40... Kg8 {[%clk 0:03:10.2]} 41. Qd6
{[%clk 0:00:20.5]} 41... Rb1 {[%clk 0:01:51.5]} 42. Qd8+ {[%clk 0:00:21.1]}
42... Kf7 {[%clk 0:01:51.7]} 43. Qe8# {[%clk 0:00:22.2]} 1-0

[Event "GrandPrix_29.05"]
[Site "Chess.com"]
[Date "2020.05.29"]
[Round "8"]
[White "Carpe7Diem"]
[Black "Baron_von_Koenig"]
[Result "0-1"]
[WhiteElo "2043"]
[BlackElo "2058"]
[TimeControl "600+2"]
[EndTime "13:02:09 PDT"]
[Termination "Baron_von_Koenig won on time"]

1. c4 {[%clk 0:10:01.9]} 1... Nc6 {[%clk 0:10:00.6]} 2. Nc3 {[%clk 0:10:01.6]}
2... e5 {[%clk 0:10:01.1]} 3. g3 {[%clk 0:10:00.5]} 3... f5 {[%clk 0:09:59.3]}
4. Bg2 {[%clk 0:10:00.7]} 4... Nf6 {[%clk 0:10:00.5]} 5. e3 {[%clk 0:10:01.1]}
5... d5 {[%clk 0:09:52.4]} 6. Nxd5 {[%clk 0:08:22.5]} 6... Nxd5 {[%clk 0:09:50]}
7. cxd5 {[%clk 0:08:23.6]} 7... Nb4 {[%clk 0:09:50.6]} 8. d3 {[%clk 0:08:16.2]}
8... Nxd5 {[%clk 0:09:50.7]} 9. Nf3 {[%clk 0:08:10.3]} 9... Bb4+ {[%clk
0:07:55]} 10. Bd2 {[%clk 0:08:03]} 10... Bxd2+ {[%clk 0:07:55.7]} 11. Qxd2
{[%clk 0:08:00.4]} 11... Qd6 {[%clk 0:07:53.6]} 12. d4 {[%clk 0:07:32.4]} 12...
e4 {[%clk 0:07:49.4]} 13. Ne5 {[%clk 0:07:32.1]} 13... O-O {[%clk 0:07:43.1]}
14. Rc1 {[%clk 0:07:20.2]} 14... c6 {[%clk 0:06:57.2]} 15. O-O {[%clk
0:07:14.1]} 15... Be6 {[%clk 0:06:58.2]} 16. Rfd1 {[%clk 0:06:54.2]} 16... Nf6
{[%clk 0:06:48.8]} 17. b3 {[%clk 0:06:48.3]} 17... Nd7 {[%clk 0:06:39]} 18. Nxd7
{[%clk 0:06:28.5]} 18... Qxd7 {[%clk 0:06:31.8]} 19. Bf1 {[%clk 0:06:25.7]}
19... b5 {[%clk 0:06:12.7]} 20. Rc5 {[%clk 0:05:12.6]} 20... Bd5 {[%clk
0:06:12.9]} 21. Qa5 {[%clk 0:04:56.1]} 21... a6 {[%clk 0:06:09.3]} 22. Rdc1
{[%clk 0:04:35.4]} 22... g5 {[%clk 0:06:08.8]} 23. Qc3 {[%clk 0:03:26.6]} 23...
Rac8 {[%clk 0:05:55.4]} 24. a4 {[%clk 0:03:21.2]} 24... Rb8 {[%clk 0:05:30.6]}
25. Qa5 {[%clk 0:02:48.3]} 25... Ra8 {[%clk 0:05:21.7]} 26. Qb4 {[%clk
0:02:40.3]} 26... f4 {[%clk 0:05:10.5]} 27. axb5 {[%clk 0:02:24.2]} 27... axb5
{[%clk 0:05:11.1]} 28. Bxb5 {[%clk 0:02:25.3]} 28... cxb5 {[%clk 0:05:05.5]} 29.
Qxb5 {[%clk 0:02:22.9]} 29... Rad8 {[%clk 0:04:18.2]} 30. b4 {[%clk 0:00:33.3]}
30... fxe3 {[%clk 0:03:10.5]} 31. fxe3 {[%clk 0:00:34.2]} 31... Qf7 {[%clk
0:03:03.1]} 32. Qe2 {[%clk 0:00:22]} 32... Qf3 {[%clk 0:02:06.4]} 33. Qxf3
{[%clk 0:00:17.9]} 33... Rxf3 {[%clk 0:02:06.9]} 34. R1c3 {[%clk 0:00:16.3]}
34... h6 {[%clk 0:01:58.4]} 35. b5 {[%clk 0:00:17.2]} 35... Be6 {[%clk
0:01:59.6]} 36. b6 {[%clk 0:00:18.1]} 36... Bh3 {[%clk 0:02:00.4]} 37. Rc1
{[%clk 0:00:14.6]} 37... Rdf8 {[%clk 0:02:01.4]} 38. Rc8 {[%clk 0:00:12]} 38...
Bxc8 {[%clk 0:01:56.2]} 0-1